fUSD/lending_fUSD_20251001
["ID","MTS","AMOUNT","RATE_DAILY","PERIOD"]
[388751567,1759348243278,-500.0,0.000193,2]
[388751569,1759348243288,-500.0,0.000193,2]
[388751571,1759348243298,-500.0,0.000193,2]
[388751573,1759348243310,-500.0,0.000193,2]
[388751575,1759348243322,-500.0,0.000193,2]
[388751577,1759348243332,-560.87842462,0.000193,2]
[388751579,1759348243342,-160.0,0.000193,2]
[388751581,1759348243352,-160.0,0.000193,2]
[388751584,1759348243363,-212.45053244,0.000193,2]
[388751586,1759348243373,-114275.61000003,0.000193,2]
[388751588,1759348243384,-439.01,0.00019301,2]
[388751591,1759348243394,-347.47029254,0.00019315,2]
[388751594,1759348243405,-370.35923647,0.00019329,2]
[388751597,1759348243414,-347.47029254,0.0001937,2]
[388751600,1759348243423,-418.83707552,0.00019414,2]
[388751603,1759348243433,-2964.63,0.00019438,2]
[388751605,1759348243445,-347.47029254,0.00019452,2]
[388751607,1759348243455,-153.51809467,0.00019496,2]
[388751609,1759348243464,-158.98202874,0.00019496,2]
[388751611,1759348243474,-160.0,0.000195,2]
[388751613,1759348243483,-546.84966986,0.00019527,10]
[388751615,1759348243492,-347.47029254,0.00019534,2]
[388751617,1759348243502,-262.72198598,0.0001954,5]
[388751619,1759348243511,-370.35923647,0.000196,7]
[388751621,1759348243523,-347.47029254,0.00019616,2]
[388751623,1759348243534,-347.47029254,0.00019671,2]
[388751626,1759348243545,-1000.0,0.00019699,2]
[388751628,1759348243555,-160.0,0.000197,2]
[388751630,1759348243569,-2964.63,0.00019712,2]
[388751632,1759348243581,-3000.0,0.00019712,2]
[388751634,1759348243590,-425.85867846,0.00019712,2]
[388751636,1759348243600,-217.153023,0.00019725,2]
[388751638,1759348243610,-5503.189676,0.00019725,2]
[388751640,1759348243619,-5503.189676,0.00019725,2]
[388751642,1759348243629,-156.418437,0.00019725,2]
[388751644,1759348243638,-266.439209,0.00019725,2]
[388751646,1759348243648,-266.439209,0.00019725,2]
[388751648,1759348243659,-161.916859,0.00019725,2]
[388751650,1759348243668,-150.272735,0.00019725,2]
[388751652,1759348243678,-156.587,0.00019726,2]
[388751654,1759348243688,-749.70777924,0.00019729,2]
[388751656,1759348243697,-151.0,0.0001973,2]
[388751658,1759348243706,-347.47029254,0.00019753,2]
[388751660,1759348243716,-273.50753162,0.0001977,2]
[388751662,1759348243726,-347.47029254,0.00019836,2]
[388751664,1759348243735,-500.0,0.00019848,2]
[388751666,1759348243744,-500.0,0.00019848,2]
[388751668,1759348243755,-454.14942271,0.00019848,2]
[388751670,1759348243766,-1000.0,0.00019848,2]
[388751672,1759348243775,-1000.0,0.00019848,2]
[388751674,1759348243785,-1000.0,0.00019848,2]
[388751676,1759348243794,-261.90604596,0.00019848,2]
[388751678,1759348243805,-1000.0,0.00019848,2]
[388751680,1759348243814,-500.0,0.00019848,2]
[388751682,1759348243823,-500.0,0.00019848,2]
[388751684,1759348243833,-500.32388925,0.00019848,2]
[388751686,1759348243842,-1000.0,0.00019848,2]
[388751688,1759348243852,-635.7649344,0.00019848,2]
[388751690,1759348243862,-1000.0,0.00019848,2]
[388751692,1759348243872,-10993.88374644,0.000199,2]
[388751694,1759348243881,-160.0,0.000199,2]
[388751696,1759348243891,-169.71604083,0.000199,2]
[388751698,1759348243900,-496.24,0.00019908,2]
[388751700,1759348243910,-347.47029254,0.00019918,2]
[388751702,1759348243920,-546.84966986,0.00019953,11]
[388751704,1759348243930,-2964.63,0.00019986,2]
[388751705,1759348243939,-2263.56783799,0.0001999,2]
[388751706,1759348243948,-1000.0,0.00019999,2]
[388751707,1759348243958,-10765.4877195,0.0002,2]
[388751708,1759348243967,-1512.05406265,0.0002,2]
[388751709,1759348243976,-25242.35128718,0.0002,2]
[388751710,1759348243986,-2298.97,0.0002,5]
[388751711,1759348243999,-3331.42318853,0.0002,5]
[388751712,1759348244009,-476.96971838,0.0002,2]
[388751713,1759348244020,-279145.46460674,0.0002,2]
[388751714,1759348244030,-209254.54888775,0.0002,2]
[388751715,1759348244040,-393.0,0.0002,2]
[388751717,1759348244050,-581.3,0.0002,2]
[388751719,1759348244059,-1677.342843,0.0002,2]
[388751721,1759348244072,-260065.36598095,0.0002,2]
[388751723,1759348244082,-170.8425,0.0002,2]
[388751725,1759348244091,-500.0,0.0002,2]
[388751727,1759348244101,-500.0,0.0002,2]
[388751729,1759348244111,-500.0,0.0002,2]
[388751731,1759348244121,-161.20766978,0.0002,2]
[388751733,1759348244130,-500.0,0.0002,2]
[388751735,1759348244139,-500.0,0.0002,2]
[388751737,1759348244148,-500.0,0.0002,2]
[388751739,1759348244158,-500.0,0.0002,2]
[388751741,1759348244167,-200.0,0.0002,2]
[388751743,1759348244177,-4000.0,0.0002,4]
[388751745,1759348244186,-159.99936,0.0002,2]
[388751747,1759348244196,-167.89503211,0.0002,2]
[388751749,1759348244205,-500.0,0.0002,2]
[388751751,1759348244216,-500.0,0.0002,2]
[388751754,1759348244228,-207.35174928,0.0002,2]
[388751756,1759348244238,-500.0,0.0002,2]
[388751758,1759348244247,-302.46761904,0.0002,2]
[388751760,1759348244257,-157.07298382,0.0002,2]
[388751762,1759348244267,-500.0,0.0002,2]
[388751764,1759348244277,-500.0,0.0002,2]
[388751766,1759348244287,-500.0,0.0002,2]
[388751768,1759348244296,-500.0,0.0002,2]
[388751770,1759348244306,-500.0,0.0002,2]
[388751772,1759348244316,-500.0,0.0002,2]
[388751774,1759348244325,-500.0,0.0002,2]
[388751776,1759348244335,-500.0,0.0002,2]
[388751778,1759348244345,-500.0,0.0002,2]
[388751780,1759348244354,-500.0,0.0002,2]
[388751782,1759348244364,-529.28325191,0.0002,2]
[388751784,1759348244375,-500.0,0.0002,2]
[388751787,1759348244385,-343.82649804,0.0002,2]
[388751789,1759348244395,-500.0,0.0002,2]
[388751791,1759348244404,-150.0,0.0002,2]
[388751793,1759348244413,-500.0,0.0002,2]
[388751795,1759348244422,-165.35,0.00020092,2]
[388751797,1759348244431,-2351.0,0.00020103,2]
[388751799,1759348244441,-1677.342843,0.000202,2]
[388751801,1759348244451,-1090.0,0.00020217,2]
[388751803,1759348244460,-2964.63,0.0002026,2]
[388751805,1759348244471,-3500.0,0.0002026,2]
[388751807,1759348244480,-1192.240847,0.00020263,2]
[388751809,1759348244490,-162.380719,0.00020274,2]
[388751811,1759348244499,-250.0,0.00020319,2]
[388751813,1759348244508,-546.84966986,0.0002038,12]
[388751815,1759348244518,-500.0,0.00020396,2]
[388751817,1759348244532,-1500.0,0.00020396,2]
[388751820,1759348244542,-1500.0,0.00020396,2]
[388751822,1759348244553,-1500.0,0.00020396,2]
[388751824,1759348244562,-1000.0,0.00020396,2]
[388751826,1759348244571,-1677.342843,0.000204,2]
[388751828,1759348244580,-155.87313379,0.00020455,2]
[388751830,1759348244590,-2000.0,0.000205,2]
[388751832,1759348244599,-2000.0,0.000205,2]
[388751834,1759348244609,-39974.5579666,0.00020518,2]
[388751836,1759348244618,-2964.63,0.00020534,2]
[388751838,1759348244628,-1000.0,0.00020548,2]
[388751840,1759348244637,-1000.0,0.00020548,2]
[388751842,1759348244647,-1000.0,0.00020548,2]
[388751844,1759348244656,-1000.0,0.00020548,2]
[388751857,1759348244773,-982.48168327,0.00020548,2]
[388751860,1759348244784,-1000.0,0.00020548,2]
[388751862,1759348244794,-1000.0,0.00020548,2]
[388751864,1759348244804,-1000.0,0.00020548,2]
[388751866,1759348244813,-1000.0,0.00020548,2]
[388751868,1759348244823,-523.9794035,0.00020548,2]
[388751870,1759348244832,-1000.0,0.00020548,2]
[388751872,1759348244842,-1000.0,0.00020548,2]
[388751874,1759348244851,-1000.0,0.00020548,2]
[388751876,1759348244860,-1000.0,0.00020548,2]
[388751878,1759348244869,-1000.0,0.00020548,2]
[388751880,1759348244879,-164.24172155,0.00020548,2]
[388751882,1759348244888,-1000.0,0.00020548,2]
[388751884,1759348244897,-250.0,0.00020548,2]
[388751886,1759348244906,-1000.0,0.00020548,2]
[388751888,1759348244916,-1910.7,0.00020589,2]
[388751890,1759348244926,-1677.342843,0.000206,2]
[388751892,1759348244935,-978.57,0.0002065,2]
[388751894,1759348244945,-273.50753162,0.00020726,2]
[388751896,1759348244954,-500.0,0.0002076,2]
[388751898,1759348244964,-20463.55,0.00020769,2]
[388751900,1759348244974,-1000.0,0.00020799,2]
[388751903,1759348244985,-2000.0,0.000208,2]
[388751905,1759348244995,-2000.0,0.000208,2]
[388751906,1759348245006,-2000.0,0.000208,2]
[388751909,1759348245020,-2000.0,0.000208,2]
[388751911,1759348245029,-1000.39,0.000208,2]
[388751913,1759348245040,-1677.342843,0.000208,2]
[388751915,1759348245051,-546.84966986,0.00020806,14]
[388751917,1759348245061,-2964.63,0.00020808,2]
[388751919,1759348245071,-1006.24210122,0.00020808,2]
[388751921,1759348245080,-168.3888056,0.00020822,2]
[388751923,1759348245090,-198.27,0.000209,2]
[388751925,1759348245099,-468.1,0.000209,2]
[388751927,1759348245109,-156.6,0.000209,2]
[388751929,1759348245118,-4293.41,0.000209,2]
[388751932,1759348245129,-5582.6,0.000209,2]
[388751934,1759348245139,-1059.4885,0.000209,30]
[388751936,1759348245149,-10180.082858,0.000209,2]
[388751938,1759348245158,-1317.03,0.000209,7]
[388751940,1759348245167,-169.71604083,0.000209,2]
[388751942,1759348245176,-183.56,0.00020906,2]
[388751944,1759348245186,-150.0,0.00020929,2]
[388751946,1759348245196,-2000.0,0.00020944,2]
[388751948,1759348245206,-2000.0,0.00020944,2]
[388751950,1759348245215,-276.0,0.00020986,2]
[388751952,1759348245225,-266.0248911,0.00020991,2]
[388751954,1759348245234,-151.0,0.00020997,2]
[388751956,1759348245243,-170216.12463552,0.00020999,2]
[388751960,1759348245275,-2292.49474648,0.00020999,2]
[388751962,1759348245287,-1663.9492205,0.00020999,2]
[388751965,1759348245302,-250.29304959,0.00020999,2]
[388751967,1759348245313,-264.59325801,0.00020999,2]
[388751970,1759348245324,-19999.84932003,0.00020999,2]
[388751972,1759348245339,-895.38857205,0.00020999,2]
[388752001,1759348245594,150.0,0.000113,2]
[388752030,1759348245835,270.0,0.0001248,2]
[388752059,1759348246100,-500.0,0.00016999,2]
[388752061,1759348246109,-500.0,0.00016999,2]
[388752063,1759348246120,-171.05911373,0.00017521,2]
[388752065,1759348246129,-3791.43896147,0.00020999,2]
[388752067,1759348246140,-1691.22952371,0.00020999,2]
[388752074,1759348246192,-458343.86763219,0.00020999,2]
[388752076,1759348246202,-50000.0,0.00021,2]
[388752078,1759348246211,-262760.28437928,0.00021,2]
[388752080,1759348246220,-3840.46474926,0.00021,2]
[388752082,1759348246230,-2000.0,0.00021,2]
[388752084,1759348246240,-1677.342843,0.00021,2]
[388752086,1759348246250,-4000.0,0.00021,4]
[388752088,1759348246259,-496.24,0.00021009,2]
[388752090,1759348246270,-72312.25755519,0.00021026,2]
[388752092,1759348246279,-2964.63,0.00021082,2]
[388752095,1759348246289,-1000.78772615,0.00021096,2]
[388752097,1759348246298,-1500.0,0.00021096,2]
[388752099,1759348246308,-1500.0,0.00021096,2]
[388752102,1759348246317,-1500.0,0.00021096,2]
[388752105,1759348246326,-500.0,0.00021096,2]
[388752108,1759348246335,-1189.02840405,0.00021096,2]
[388752111,1759348246344,-1500.0,0.00021096,2]
[388752114,1759348246353,-618.10304799,0.00021096,2]
[388752117,1759348246363,-1001.05385818,0.00021096,2]
[388752120,1759348246371,-690.60569453,0.00021096,2]
[388752123,1759348246380,-1000.99988073,0.00021096,2]
[388752126,1759348246389,-1001.20918958,0.00021096,2]
[388752129,1759348246398,-150.21755954,0.00021096,2]
[388752132,1759348246407,-1000.83976611,0.00021096,2]
[388752134,1759348246416,-444.28,0.000211,2]
[388752136,1759348246425,-198.27,0.000211,2]
[388752138,1759348246434,-468.1,0.000211,2]
[388752140,1759348246443,-156.6,0.000211,2]
[388752141,1759348246453,-4293.41,0.000211,2]
[388752144,1759348246463,-5582.6,0.000211,2]
[388752146,1759348246472,-1677.342843,0.000212,2]
[388752147,1759348246482,-546.84966986,0.00021233,15]
[388752148,1759348246490,-1090.0,0.00021281,2]
[388752149,1759348246500,-8919.5295209,0.00021303,2]
[388752150,1759348246509,-2964.63,0.00021356,2]
[388752152,1759348246520,-174.61919141,0.0002137,2]
[388752154,1759348246531,-1677.342843,0.000214,2]
[388752156,1759348246541,-72312.25755519,0.0002147,2]
[388752158,1759348246551,-2500.0,0.00021492,2]
[388752160,1759348246562,-2422.77511515,0.00021492,2]
[388752162,1759348246573,-1000.0,0.000215,3]
[388752164,1759348246583,-1000.0,0.000215,3]
[388752166,1759348246593,-150.01,0.00021611,4]
[388752168,1759348246603,-2964.63,0.0002163,2]
[388752170,1759348246614,-2000.0,0.00021644,2]
[388752172,1759348246625,-316.74357226,0.00021644,2]
[388752174,1759348246635,-1206.72702718,0.00021644,2]
[388752176,1759348246647,-2000.0,0.00021644,2]
[388752178,1759348246658,-546.84966986,0.00021659,17]
[388752180,1759348246670,-273.50753162,0.00021683,2]
[388752182,1759348246681,-1677.342843,0.000217,2]
[388752184,1759348246693,-90374.77727081,0.000217,2]
[388752186,1759348246704,-453.8610666,0.00021726,2]
[388752188,1759348246717,-277.27437689,0.00021726,2]
[388752189,1759348246727,-104625.1013842,0.00021726,2]
[388752192,1759348246739,-4779.82097325,0.00021729,2]
[388752193,1759348246749,-4779.82097325,0.00021729,2]
[388752195,1759348246759,-3381.41491911,0.00021729,2]
[388752197,1759348246774,-11757.04030131,0.00021729,2]
[388752199,1759348246785,-237.50680533,0.0002173,2]
[388752201,1759348246794,-152.59581706,0.00021731,2]
[388752203,1759348246805,-237.37759762,0.00021731,2]
[388752205,1759348246816,-188.89313762,0.00021733,2]
[388752207,1759348246825,-237.37759762,0.00021733,2]
[388752209,1759348246834,-252.14900252,0.00021735,2]
[388752211,1759348246843,-11757.04030131,0.00021735,2]
[388752213,1759348246853,-258.38519804,0.00021736,2]
[388752215,1759348246864,-221.56053346,0.00021738,2]
[388752217,1759348246874,-188.89313762,0.00021738,2]
[388752219,1759348246883,-206.87437825,0.00021738,2]
[388752221,1759348246893,-155.1827296,0.0002174,2]
[388752224,1759348246902,-206.87437825,0.0002174,2]
[388752226,1759348246912,-172.87166743,0.00021741,2]
[388752228,1759348246922,-252.14900252,0.00021741,2]
[388752230,1759348246931,-258.38519804,0.00021741,2]
[388752232,1759348246940,-1093.85275526,0.00021741,2]
[388752234,1759348246952,-252.14900252,0.00021741,2]
[388752236,1759348246961,-237.50680533,0.00021742,2]
[388752238,1759348246970,-337.33135495,0.00021742,2]
[388752240,1759348246980,-11757.04030131,0.00021743,2]
[388752242,1759348246989,-237.50680533,0.00021743,2]
[388752244,1759348247001,-2370.47676395,0.00021743,2]
[388752246,1759348247010,-237.50680533,0.00021744,2]
[388752248,1759348247023,-239.77801947,0.00021745,2]
[388752250,1759348247033,-277.27437689,0.00021745,2]
[388752252,1759348247042,-337.33135495,0.00021747,2]
[388752254,1759348247051,-174.10567266,0.00021748,2]
[388752256,1759348247060,-7110.64828383,0.00021749,2]
[388752258,1759348247074,-453.8610666,0.0002175,2]
[388752260,1759348247083,-3381.41491911,0.0002175,2]
[388752262,1759348247092,-155.1827296,0.0002175,2]
[388752264,1759348247101,-3381.41491911,0.00021751,2]
[388752266,1759348247112,-174.10567266,0.00021752,2]
[388752268,1759348247121,-600.89441717,0.00021754,2]
[388752270,1759348247131,-4779.82097325,0.00021755,2]
[388752272,1759348247139,-239.77801947,0.00021756,2]
[388752274,1759348247149,-600.89441717,0.00021756,2]
[388752276,1759348247159,-252.14900252,0.00021759,2]
[388752278,1759348247168,-252.11824268,0.0002176,2]
[388752280,1759348247178,-4953.97780757,0.0002176,2]
[388752282,1759348247187,-337.33135495,0.00021761,2]
[388752284,1759348247196,-237.37759762,0.00021762,2]
[388752286,1759348247205,-2370.47676395,0.00021762,2]
[388752288,1759348247215,-51855.37359391,0.00021763,2]
[388752290,1759348247224,-3814.08687359,0.00021764,2]
[388752292,1759348247233,-102596.87931151,0.00021765,2]
[388752354,1759348247805,-2028.22207269,0.00021765,2]
[388752356,1759348247815,-277.27437689,0.00021766,2]
[388752358,1759348247824,-221.56053346,0.00021767,2]
[388752360,1759348247834,-252.11824268,0.00021769,2]
[388752362,1759348247843,-299.30502919,0.00021769,2]
[388752364,1759348247853,-14248.02985682,0.0002177,2]
[388752371,1759348247905,-694.9688519,0.0002177,2]
[388752373,1759348247916,-429.35710034,0.0002177,2]
[388752377,1759348247943,-280.111995,0.0002177,2]
[388752379,1759348247954,-33207.16002959,0.0002177,2]
[388754972,1759348753063,150.0,0.000113,2]
[388754973,1759348753435,150.0,0.0001248,2]
[388754974,1759348753863,150.0,0.0001367,2]
[388754975,1759348754267,150.0,0.0001485,2]
[388754976,1759348754677,190.0,0.0001603,2]
[388754981,1759348777505,2500.0,0.00030137,120]
[388755029,1759348879146,500.0,0.00030136,120]
[388755081,1759348911285,158.17,9.559e-05,2]
[388755082,1759348911393,158.17,0.00010753,2]
[388755083,1759348911583,158.17,0.00011948,2]
[388755084,1759348911679,158.17,0.00013143,2]
[388755085,1759348911766,158.17,0.00014338,2]
[388755086,1759348911838,158.17,0.00015533,2]
[388755241,1759349355122,164.1,0.00028631,120]
[388755275,1759349432040,-158.17,0.00016727,2]
[388755276,1759349432050,-1700.98898549,0.0001677,2]
[388755277,1759349432060,-195.0,0.00016813,2]
[388755278,1759349432070,-2009.5026733,0.00016899,2]
[388755279,1759349432080,-168.0,0.00016974,2]
[388755280,1759349432091,-1200.0,0.00016988,2]
[388755281,1759349432101,-200.0,0.00016989,2]
[388755282,1759349432111,-322.6107,0.00016989,2]
[388755283,1759349432121,-500.0,0.00016989,2]
[388755284,1759349432131,-533.93697009,0.00016989,2]
[388755285,1759349432143,-708.92176108,0.00016989,2]
[388755286,1759349432153,-500.0,0.00016989,2]
[388755287,1759349432162,-500.0,0.00016989,2]
[388755288,1759349432172,-500.0,0.00016989,2]
[388755289,1759349432182,-500.0,0.00016989,2]
[388755290,1759349432191,-500.0,0.00016989,2]
[388755291,1759349432200,-500.0,0.00016989,2]
[388755292,1759349432210,-500.0,0.00016989,2]
[388755293,1759349432219,-500.0,0.00016989,2]
[388755294,1759349432228,-500.0,0.00016989,2]
[388755295,1759349432238,-151.0,0.00016989,2]
[388755296,1759349432247,-500.0,0.00016989,2]
[388755297,1759349432257,-151.0,0.00016989,2]
[388755298,1759349432266,-500.0,0.00016989,2]
[388755299,1759349432275,-500.0,0.00016989,2]
[388755300,1759349432284,-500.0,0.00016989,2]
[388755301,1759349432294,-151.0,0.00016989,2]
[388755302,1759349432303,-500.0,0.00016989,2]
[388755303,1759349432313,-500.0,0.00016989,2]
[388755304,1759349432322,-12.47823892,0.00016989,2]
[388755307,1759349432377,-487.52176108,0.00016989,2]
[388755309,1759349432387,-151.0,0.00016989,2]
[388755311,1759349432396,-1000.0,0.00016989,2]
[388755313,1759349432405,-500.0,0.00016989,2]
[388755315,1759349432415,-500.0,0.00016989,2]
[388755317,1759349432425,-319.87823892,0.00016989,2]
[388755332,1759349432532,-180.12176108,0.00016989,2]
[388755336,1759349432542,-151.0,0.00016989,2]
[388755339,1759349432552,-810.59101195,0.00016989,2]
[388755342,1759349432562,-500.0,0.00016989,2]
[388755345,1759349432572,-500.0,0.00016989,2]
[388755348,1759349432581,-500.0,0.00016989,2]
[388755351,1759349432592,-151.0,0.00016989,2]
[388755353,1759349432601,-500.0,0.00016989,2]
[388755355,1759349432612,-239.84119403,0.00016989,2]
[388755357,1759349432621,-151.0,0.00016989,2]
[388755359,1759349432631,-151.0,0.00016989,2]
[388755361,1759349432640,-151.0,0.00016989,2]
[388755363,1759349432650,-151.0,0.00016989,2]
[388755365,1759349432659,-200.0,0.00016989,2]
[388755367,1759349432668,-200.0,0.00016989,2]
[388755369,1759349432677,-599.60298506,0.00016989,2]
[388755371,1759349432687,-623.58710449,0.00016989,2]
[388755373,1759349432696,-2294.93,0.00016989,2]
[388755375,1759349432706,-296.82,0.00017,2]
[388755377,1759349432718,-250.0,0.00017,2]
[388755379,1759349432728,-168.0,0.00017131,2]
[388755381,1759349432737,-2294.93,0.00017263,2]
[388755383,1759349432747,-2294.93,0.00017537,2]
[388755385,1759349432756,-2294.93,0.00017811,2]
[388755387,1759349432765,-158.17,0.00017922,2]
[388755389,1759349432775,-168.0,0.00017956,2]
[388755391,1759349432785,-4327.31805398,0.00018,2]
[388755393,1759349432795,-2294.93,0.00018085,2]
[388755395,1759349432806,-168.0,0.00018342,2]
[388755397,1759349432816,-334.5472959,0.00018358,2]
[388755399,1759349432825,-2294.93,0.00018359,2]
[388755401,1759349432835,-250.0,0.000184,2]
[388755403,1759349432845,-2000.0,0.000184,2]
[388755405,1759349432855,-2294.93,0.00018633,2]
[388755407,1759349432864,-1476.77302725,0.00018647,2]
[388755410,1759349432876,-203.22697275,0.00018647,2]
[388755412,1759349432886,-566.47604084,0.00018907,2]
[388755415,1759349432911,-1728.45395916,0.00018907,2]
[388755420,1759349433263,-271.54604084,0.00018922,2]
[388755421,1759349433311,-1242.85873117,0.00018922,2]
[388755422,1759349433323,-458.19132845,0.00018922,2]
[388755429,1759349437875,-5562.86915486,0.00018922,2]
[388755430,1759349437889,-1026.14383592,0.00018922,2]
[388755431,1759349437902,-1689.1549634,0.00018922,2]
[388755432,1759349437976,-811.36833236,0.00018922,2]
[388755433,1759349437988,-712.08072498,0.00018922,2]
[388755434,1759349438030,-2921.91898502,0.00018922,2]
[388755435,1759349438085,-755.95927973,0.00018922,2]
[388755436,1759349438099,-5509.61978776,0.00018922,2]
[388755597,1759349439925,-9766.09883551,0.00018922,2]
[388755601,1759349439936,-1000.0,0.00018935,2]
[388755604,1759349439946,-666.0,0.00018951,3]
[388755607,1759349439957,-183.2,0.00019052,2]
[388755610,1759349439968,-2000.0,0.00019076,2]
[388755613,1759349439978,-164.1,0.00019088,2]
[388755616,1759349439989,-158.17,0.00019117,2]
[388755620,1759349440000,-151.0,0.00019178,2]
[388755623,1759349440011,-4000.0,0.00019178,2]
[388755626,1759349440022,-2294.93,0.00019181,2]
[388755629,1759349440032,-200.0,0.0001923,2]
[388755631,1759349440043,-370.35923647,0.00019272,2]
[388755633,1759349440054,-945.92,0.000193,2]
[388755636,1759349440064,-232.29,0.00019364,2]
[388755638,1759349440074,-2294.93,0.00019455,2]
[388755640,1759349440084,-1573.47923502,0.00019624,2]
[388755642,1759349440096,-436.02343827,0.00019624,2]
[388755644,1759349440106,-247.62,0.00019711,2]
[388755646,1759349440116,-156.587,0.00019726,2]
[388755649,1759349440126,-329.58886487,0.00019727,2]
[388755651,1759349440138,-17.33668098,0.00019727,2]
[388755653,1759349440148,-2294.93,0.00019728,2]
[388755655,1759349440159,-14.63331902,0.00019747,2]
[388755658,1759349440172,-151.13668098,0.00019747,2]
[388755660,1759349440182,-250.0,0.00019747,2]
[388755662,1759349440192,-150.0,0.00019775,2]
[388755664,1759349440202,-160.14885161,0.00019775,2]
[388755666,1759349440212,-150.0,0.00019775,2]
[388755668,1759349440222,-150.0,0.00019775,2]
[388755670,1759349440232,-150.0,0.00019775,2]
[388755672,1759349440242,-239.77990374,0.00019775,2]
[388755674,1759349440253,-99.41821497,0.00019775,2]
[388755677,1759349440265,-50.58178503,0.00019775,2]
[388755679,1759349440276,-150.0,0.00019775,2]
[388755681,1759349440286,-150.0,0.00019775,2]
[388755683,1759349440295,-225.55776548,0.00019775,2]
[388755685,1759349440306,-156.01244219,0.00019775,2]
[388755687,1759349440316,-150.0,0.00019775,2]
[388755689,1759349440326,-41.22909435,0.00019775,2]
[388755692,1759349440339,-108.77090565,0.00019775,2]
[388755694,1759349440350,-150.0,0.00019775,2]
[388755696,1759349440360,-150.0,0.00019775,2]
[388755698,1759349440370,-167.795,0.00019908,2]
[388755700,1759349440380,-1315.40933401,0.00019908,2]
[388755704,1759349440405,-272.47566599,0.00019908,2]
[388755706,1759349440415,-823.04012678,0.00019931,2]
[388755708,1759349440425,-335.46856859,0.0002,2]
[388755710,1759349440435,-2294.93,0.00020002,2]
[388755712,1759349440445,-335.46856859,0.000202,2]
[388755714,1759349440455,-304.81348301,0.00020274,2]
[388755717,1759349440466,-2294.93,0.00020276,2]
[388755719,1759349440476,-678.64,0.00020306,2]
[388755721,1759349440487,-335.46856859,0.000204,2]
[388755723,1759349440498,-160.95,0.00020449,2]
[388755725,1759349440508,-200.0,0.00020465,2]
[388755727,1759349440520,-2351.0,0.00020468,2]
[388755729,1759349440530,-1649.61700895,0.0002055,2]
[388755733,1759349440552,-500.0,0.0002055,2]
[388755737,1759349440577,-145.31299105,0.0002055,2]
[388755739,1759349440587,-335.46856859,0.000206,2]
[388755741,1759349440598,-335.46856859,0.000208,2]
[388755743,1759349440608,-1662.24036666,0.00020824,2]
[388755745,1759349440620,-632.68963334,0.00020824,2]
[388755747,1759349440630,-150.0,0.00020874,4]
[388755749,1759349440640,-1185.33,0.000209,7]
[388755751,1759349440650,-231.38036666,0.00020932,2]
[388755755,1759349440672,-268.61963334,0.00020932,2]
[388755757,1759349440681,-220.8,0.00020986,2]
[388755759,1759349440691,-67.0760969,0.00020996,2]
[388755761,1759349440703,-919.91201834,0.00020996,2]
[388755763,1759349440715,-108.75753735,0.00021,2]
[388755766,1759349440728,-1503.11293404,0.00021,2]
[388755872,1759349441816,-1822.77425259,0.00021,2]
[388755875,1759349441828,-1102.9664001,0.00021,2]
[388756017,1759349443025,-368.514439,0.00021,2]
[388756020,1759349443045,-1435.07662,0.00021,2]
[388756029,1759349443091,-650.75537189,0.00021,2]
[388756031,1759349443105,-632.39735907,0.00021,2]
[388756035,1759349443119,-898.98,0.00021,2]
[388756042,1759349443151,-678.1381172,0.00021,2]
[388756046,1759349443163,-1285.26000001,0.00021,2]
[388756070,1759349443313,-570.14688238,0.00021,2]
[388756072,1759349443325,-7025.62260585,0.00021,2]